[Event "WYCC 2018 O14"]
[Site "Halkidiki"]
[Date "2018.10.21"]
[Round "3"]
[White "Tsarsitalidis, Konstantinos"]
[Black "Marn, Jan"]
[Result "0-1"]
[ECO "C54"]
[WhiteElo "1864"]
[BlackElo "2125"]
[Annotator "NA"]
[PlyCount "66"]
[EventDate "2018.10.20"]
[EventType "swiss"]
[EventCountry "GRE"]
[SourceTitle "playchess.com"]
[Source "ChessBase"]
[SourceQuality "1"]
[TimeControl "40/5400+30:1800+30"]

1. e4 {[%emt 0:00:00]} e5 {[%emt 0:00:00]} 2. Nf3 {[%emt 0:00:00]} Nc6 {[%emt 0:00:00]} 3. Bc4 {[%emt 0:00:00]} Bc5 {[%emt 0:00:00]} 4. c3 {[%emt 0:00:00]} Nf6 {[%emt 0:00:00]} 5. d3 {[%emt 0:00:00]} d6 {[%emt 0:00:25]} 6. O-O {[%emt 0:00:07]} a6 {[%emt 0:00:11]} 7. a4 {[%emt 0:00:13]} Ba7 8. h3 Ne7 {[%emt 0:03:00]} 9. Nbd2 {[%emt 0:01:54]} O-O {[%emt 0:00:29]} 10. Bb3 {[%emt 0:02:07]} Ng6 {[%emt 0:07:16]} 11. d4 {[%emt 0:04:41]} b5 {[%emt 0:08:27]} 12. Re1 {[%emt 0:05:50]} Bb7 {[%emt 0:03:44]} 13. Bc2 {[%emt 0:00:10]} Re8 {[%emt 0:00:08]} 14. d5 {[%emt 0:16:23]} c6 {[%emt 0:06:20]} 15. c4 {[%emt 0:03:13]} cxd5 {[%emt 0:02:06]} 16. cxd5 $15 {[%emt 0:00:09]} Qb6 {[%emt 0:03:40]} 17. Rf1 {[%emt 0:01:42]} Rec8 {[%emt 0:11:51]} 18. Nb3 {[%emt 0:09:32]} b4 {[%emt 0:16:31]} 19. a5 {[%emt 0:03:28]} Qc7 {[%emt 0:00:43]} 20. Bd3 {[%emt 0:01:44]} Re8 {[%emt 0:06:58]} 21. Bd2 {[%emt 0:09:23]} Nxd5 {[%emt 0:01:50]} 22. exd5 {[%emt 0:02:45]} e4 {[%emt 0:00:22]} 23. Be2 {[%emt 0:00:02]} exf3 {[%emt 0:00:26]} 24. Bxf3 {[%emt 0:00:02]} Qc4 {[%emt 0:03:31]} 25. Rc1 {[%emt 0:02:00]} Qb5 {[%emt 0:01:15]} 26. g3 {[%emt 0:02:53]} Ne5 {[%emt 0:01:07]} 27. Bg2 {[%emt 0:00:01]} Bxd5 {[%emt 0:05:50]} 28. Bxd5 {[%emt 0:00:30]} Qxd5 {[%emt 0:00:05]} 29. Bxb4 {[%emt 0:00:04]} Nf3+ {[%emt 0:00:08]} 30. Kh1 {[%emt 0:00:10]} Nd4+ {[%emt 0:00:11]} 31. Kh2 {[%emt 0:01:16]} Qxb3 {[%emt 0:00:58]} 32. Qxb3 {[%emt 0:00:07]} Nxb3 {[%emt 0:00:04]} 33. Rc3 {[%emt 0:00:06]} Nc5 {[%emt 0:00:59]} 0-1

[Event "WYCC 2018 O14"]
[Site "Halkidiki"]
[Date "2018.10.22"]
[Round "4"]
[White "Bjerre, Jonas Buhl"]
[Black "Munshi, Aditya"]
[Result "1-0"]
[ECO "B12"]
[WhiteElo "2438"]
[BlackElo "2133"]
[Annotator "NA RC"]
[PlyCount "73"]
[EventDate "2018.10.20"]
[EventType "swiss"]
[EventCountry "GRE"]
[SourceTitle "playchess.com"]
[Source "ChessBase"]
[SourceQuality "1"]
[TimeControl "40/5400+30:1800+30"]

1. e4 {[%emt 0:00:00]} c6 {[%emt 0:00:00]} 2. d4 {[%emt 0:00:00]} d5 {[%emt 0:00:00]} 3. e5 {[%emt 0:00:04]} Bf5 {[%emt 0:00:18]} 4. Nd2 {[%emt 0:00:20]} e6 {[%emt 0:00:21]} 5. Nb3 {[%emt 0:00:37]} c5 {[%emt 0:02:45] B12: Caro-Kann: Advance Variation} (5... Nd7 6. Nf3 Ne7 7. Be2 Ng6 8. O-O f6 9. c4 dxc4 10. Bxc4 fxe5 11. Ng5 Qf6 12. g4 Nf4 13. Bxf4 exf4 14. Nxe6 Bxe6 15. Bxe6 {½-½ (46) Grischuk,A (2766)-Mamedyarov,S (2808) Paris 2018}) 6. dxc5 {[%emt 0:01:23]} Bxc5 {[%emt 0:03:04]} 7. Nxc5 {[%emt 0:01:29]} Qa5+ {[%emt 0:00:17]} 8. c3 {[%emt 0:01:06]} Qxc5 {[%emt 0:00:07]} 9. Be3 {[%emt 0:00:59]} Qc7 {[%emt 0:00:27]} 10. f4 {[%emt 0:00:47]} Ne7 {[%emt 0:12:59]} 11. Nf3 {[%emt 0:02:43]} Nbc6 {[%emt 0:11:02]} 12. Be2 {[%emt 0:04:15]} O-O {[%emt 0:05:50]} 13. O-O {[%emt 0:01:47] [#]} Rfd8 $146 {[%emt 0:07:02]} 14. Qd2 {[%emt 0:07:28]} Bg4 {[%emt 0:18:56]} 15. Rac1 {[%emt 0:08:30]} Rac8 {[%emt 0:02:56]} 16. b4 {[%emt 0:07:48]} b6 {[%emt 0:11:31]} 17. h3 {[%emt 0:05:31]} Bxf3 {[%emt 0:04:06]} 18. Bxf3 {[%emt 0:00:40]} Nf5 {[%emt 0:01:42]} 19. Bf2 {[%emt 0:01:21]} Qe7 {[%emt 0:01:29]} 20. Rfd1 {[%emt 0:09:51]} b5 {[%emt 0:01:01]} (20... g5 $14) 21. Qe1 {[%emt 0:10:37]} Qc7 {[%emt 0:03:30]} 22. Qf1 {[%emt 0:04:03]} Rb8 {[%emt 0:00:40]} 23. a4 {[%emt 0:01:25]} bxa4 {[%emt 0:02:13]} 24. Qa6 {[%emt 0:00:33]} Qd7 {[%emt 0:02:17]} 25. b5 {[%emt 0:04:31]} Nce7 $18 {[%emt 0:00:39]} 26. c4 {[%emt 0:02:29]} d4 {[%emt 0:03:21]} 27. g4 {[%emt 0:01:32]} Nh6 {[%emt 0:00:48]} 28. Rxd4 {[%emt 0:01:08]} Qe8 {[%emt 0:00:21]} 29. Qxa7 {[%emt 0:02:16]} Rxd4 {[%emt 0:00:14]} 30. Bxd4 {[%emt 0:00:39]} Ng6 {[%emt 0:00:44]} 31. Be3 {[%emt 0:02:51]} Nh4 {[%emt 0:00:21]} 32. Bc6 {[%emt 0:01:22]} Qd8 {[%emt 0:00:09]} 33. Qd7 {[%emt 0:01:36]} Nf3+ {[%emt 0:00:40]} 34. Kg2 {[%emt 0:01:19]} Nh4+ {[%emt 0:01:41]} 35. Kf2 {[%emt 0:01:11]} Qa5 {[%emt 0:00:55]} 36. Qa7 {[%emt 0:02:30]} Qd8 {[%emt 0:00:29]} 37. Rd1 {[%emt 0:01:38]} 1-0

[Event "WYCC 2018 O14"]
[Site "Halkidiki"]
[Date "2018.10.22"]
[Round "4"]
[White "Tsoi, Dmitry"]
[Black "Krallis, Christos"]
[Result "1-0"]
[ECO "A05"]
[WhiteElo "2429"]
[BlackElo "2139"]
[Annotator "NA"]
[PlyCount "87"]
[EventDate "2018.10.20"]
[EventType "swiss"]
[EventCountry "GRE"]
[SourceTitle "playchess.com"]
[Source "ChessBase"]
[SourceQuality "1"]
[TimeControl "40/5400+30:1800+30"]

1. Nf3 {[%emt 0:00:00]} Nf6 {[%emt 0:00:00]} 2. c4 {[%emt 0:00:01]} e6 {[%emt 0:00:03]} 3. g3 {[%emt 0:00:07]} d5 {[%emt 0:00:26]} 4. b3 {[%emt 0:00:10]} Be7 {[%emt 0:00:22]} 5. Bg2 {[%emt 0:00:09]} O-O {[%emt 0:00:06]} 6. O-O {[%emt 0:00:15]} c5 {[%emt 0:00:02]} 7. e3 {[%emt 0:00:39]} Nc6 {[%emt 0:00:35]} 8. Bb2 {[%emt 0:01:28]} d4 {[%emt 0:00:14]} 9. exd4 {[%emt 0:00:06]} cxd4 {[%emt 0:00:05]} 10. Re1 {[%emt 0:00:23]} Ne8 {[%emt 0:00:15]} 11. Ne5 {[%emt 0:07:07] A14: English Opening: 1...e6 with b3 by White} Nxe5 {[%emt 0:00:05]} 12. Rxe5 {[%emt 0:00:03]} f6 {[%emt 0:01:05]} 13. Re1 {[%emt 0:00:50]} e5 {[%emt 0:00:24]} 14. d3 {[%emt 0:00:09]} (14. Ba3 Bxa3 15. Nxa3 Rb8 16. b4 Nc7 17. d3 b6 18. Qa4 a6 {½-½ (56) Petrosian,T (2609)-Eljanov,P (2700) Sharjah 2018}) 14... Nc7 {[%emt 0:00:48]} 15. Na3 {[%emt 0:01:44]} Rb8 {[%emt 0:03:08]} 16. Qd2 $146 {[%emt 0:14:25]} ({Predecessor:} 16. Nc2 b5 17. f4 bxc4 18. dxc4 d3 {0-1 (29) Fauland,A (2448)-Banusz,T (2556) Vienna 2012}) 16... b5 {[%emt 0:36:57]} 17. cxb5 {[%emt 0:05:58]} Nxb5 {[%emt 0:01:34]} 18. Nc2 {[%emt 0:00:14]} Bb7 {[%emt 0:06:59]} 19. Bxb7 {[%emt 0:03:41]} Rxb7 {[%emt 0:00:11]} 20. f4 {[%emt 0:01:16]} Bd6 {[%emt 0:01:50]} 21. Qg2 {[%emt 0:03:14]} Rbf7 {[%emt 0:00:50]} 22. fxe5 {[%emt 0:02:04]} fxe5 {[%emt 0:00:13]} 23. Rf1 $1 {[%emt 0:00:33]} Qa8 {[%emt 0:12:37]} 24. Qxa8 {[%emt 0:03:05]} Rxa8 {[%emt 0:00:07]} 25. a4 {[%emt 0:00:08]} Rxf1+ {[%emt 0:05:38]} 26. Kxf1 {[%emt 0:04:17]} Nc7 {[%emt 0:15:27]} 27. Ba3 {[%emt 0:00:55]} Bxa3 {[%emt 0:00:39]} 28. Nxa3 {[%emt 0:00:06]} Rb8 {[%emt 0:02:11]} 29. Rb1 {[%emt 0:00:17]} Kf7 {[%emt 0:03:42]} 30. Nc4 {[%emt 0:01:38]} Ke6 {[%emt 0:02:10]} 31. Re1 {[%emt 0:00:50]} Rxb3 {[%emt 0:00:24]} 32. Rxe5+ {[%emt 0:00:05]} Kf6 {[%emt 0:00:30]} 33. Ke2 {[%emt 0:00:29]} Ne6 {[%emt 0:02:36]} 34. Ra5 {[%emt 0:00:13]} Rb7 {[%emt 0:00:50]} 35. Kf3 {[%emt 0:00:32]} Re7 {[%emt 0:01:20]} 36. h4 {[%emt 0:01:03]} g6 {[%emt 0:03:05]} 37. Nd6 {[%emt 0:00:59]} h5 {[%emt 0:00:31]} 38. Rd5 {[%emt 0:04:23]} Kg7 {[%emt 0:00:28]} 39. Nb5 {[%emt 0:01:02]} Rf7+ {[%emt 0:00:31]} 40. Kg2 {[%emt 0:00:00]} Rf5 $18 {[%emt 0:00:00]} (40... a6 $16) 41. Rxf5 {[%emt 0:02:26]} gxf5 {[%emt 0:00:41]} 42. Nxa7 {[%emt 0:00:05]} Nc5 {[%emt 0:00:36]} 43. a5 {[%emt 0:00:26]} Nxd3 {[%emt 0:00:35]} 44. Nb5 {[%emt 0:00:32]} 1-0

[Event "WYCC 2018 O14"]
[Site "Halkidiki"]
[Date "2018.10.22"]
[Round "4"]
[White "Kacharava, Nikolozi"]
[Black "Avila Pavas, Santiago"]
[Result "1-0"]
[ECO "B03"]
[WhiteElo "2373"]
[BlackElo "2277"]
[Annotator "NA"]
[PlyCount "85"]
[EventDate "2018.10.20"]
[EventType "swiss"]
[EventCountry "GRE"]
[SourceTitle "playchess.com"]
[Source "ChessBase"]
[SourceQuality "1"]
[TimeControl "40/5400+30:1800+30"]

1. e4 {[%emt 0:00:00]} Nf6 {[%emt 0:00:00]} 2. e5 {[%emt 0:00:12]} Nd5 {[%emt 0:00:05]} 3. d4 {[%emt 0:00:24]} d6 {[%emt 0:00:29]} 4. c4 {[%emt 0:00:34]} Nb6 {[%emt 0:00:22]} 5. exd6 {[%emt 0:00:41]} cxd6 {[%emt 0:00:28]} 6. Nc3 {[%emt 0:00:28]} g6 {[%emt 0:00:26]} 7. Be3 {[%emt 0:00:24]} Bg7 {[%emt 0:00:34]} 8. Rc1 {[%emt 0:00:20]} O-O {[%emt 0:01:31]} 9. b3 {[%emt 0:00:40]} Nc6 {[%emt 0:08:39]} 10. d5 {[%emt 0:07:51]} Ne5 {[%emt 0:07:09]} 11. Be2 {[%emt 0:02:28]} f5 {[%emt 0:20:25]} 12. f4 {[%emt 0:09:38]} Ng4 {[%emt 0:00:41]} 13. Bd4 {[%emt 0:01:12] B03: Alekhine's Defence: Four Pawns Attack} Bh6 {[%emt 0:22:08]} (13... e5 14. dxe6 Bxe6 15. Bxg4 Bxd4 16. Qxd4 fxg4 17. Nge2 Qh4+ 18. Ng3 Qf6 19. Qxf6 Rxf6 20. O-O d5 {1-0 (40) Azarov,S (2582)-Bernadskiy,V (2529) Lvov 2017}) 14. Qd2 {[%emt 0:05:28]} e5 {[%emt 0:05:23]} 15. dxe6 $1 {[%emt 0:00:47]} Bxe6 {[%emt 0:00:07]} 16. Nf3 {[%emt 0:03:09]} d5 {[%emt 0:05:26]} 17. c5 {[%emt 0:06:07]} Nd7 {[%emt 0:00:02]} 18. h3 $146 {[%emt 0:06:21]} ({Predecessor:} 18. O-O Qe7 19. b4 Ngf6 20. Ng5 Ne4 21. Ncxe4 fxe4 22. Nxe6 Qxe6 {1-0 (44) Chen,T (2277)-Nonnenmacher,T (2206) Germany 2007}) 18... Ngf6 {[%emt 0:00:56]} 19. Ng5 {[%emt 0:02:16]} Bxg5 {[%emt 0:10:20]} 20. fxg5 {[%emt 0:00:18]} Ne4 {[%emt 0:00:01]} 21. Nxe4 {[%emt 0:01:15]} fxe4 {[%emt 0:00:01]} 22. Bb2 $18 {[%emt 0:08:05]} ({Nicht} 22. c6 bxc6 23. Rxc6 Qe7 $16) 22... Qc7 {[%emt 0:02:14]} 23. Qd4 {[%emt 0:03:38]} Qg3+ {[%emt 0:00:03]} 24. Kd1 {[%emt 0:00:16]} Kf7 {[%emt 0:00:04]} 25. c6 {[%emt 0:01:17]} bxc6 {[%emt 0:01:55]} 26. Rxc6 {[%emt 0:00:31]} Bf5 {[%emt 0:04:31]} 27. Qxd5+ {[%emt 0:04:59]} Ke8 {[%emt 0:00:01]} 28. Bb5 {[%emt 0:02:20]} Qxg5 {[%emt 0:01:01]} 29. Re6+ {[%emt 0:06:22]} Bxe6 {[%emt 0:00:06]} 30. Qxg5 {[%emt 0:00:52]} Rf5 {[%emt 0:00:33]} 31. Bxd7+ {[%emt 0:00:20]} Kxd7 {[%emt 0:01:04]} 32. Qe3 {[%emt 0:01:02]} Rc8 {[%emt 0:00:21]} 33. Qxe4 {[%emt 0:02:14]} Bd5 {[%emt 0:01:56]} 34. Qd4 {[%emt 0:02:01]} Rd8 {[%emt 0:01:19]} 35. Qxa7+ {[%emt 0:02:56]} Kc8 {[%emt 0:00:05]} 36. Ke2 {[%emt 0:01:13]} Re8+ {[%emt 0:00:38]} 37. Kd2 {[%emt 0:00:19]} Rd8 {[%emt 0:00:41]} 38. Rc1+ {[%emt 0:02:39]} Bc6+ {[%emt 0:00:06]} 39. Bd4 {[%emt 0:00:16]} Rd6 {[%emt 0:00:05]} 40. Rc4 {[%emt 0:00:00]} Kd8 {[%emt 0:00:00]} 41. Kc3 {[%emt 0:01:31]} Bd7 {[%emt 0:01:03]} 42. Qc7+ {[%emt 0:00:37]} Ke7 {[%emt 0:00:06]} 43. Bc5 {[%emt 0:00:13]} 1-0

[Event "WYCC 2018 O14"]
[Site "Halkidiki"]
[Date "2018.10.22"]
[Round "4"]
[White "Murzin, Volodar"]
[Black "Kushagra Mohan"]
[Result "1/2-1/2"]
[ECO "C82"]
[WhiteElo "2340"]
[BlackElo "2283"]
[Annotator "NA"]
[PlyCount "151"]
[EventDate "2018.10.20"]
[EventType "swiss"]
[EventCountry "GRE"]
[SourceTitle "playchess.com"]
[Source "ChessBase"]
[SourceQuality "1"]
[TimeControl "40/5400+30:1800+30"]

1. e4 {[%emt 0:00:00]} e5 {[%emt 0:01:20]} 2. Nf3 {[%emt 0:00:00]} Nc6 {[%emt 0:00:03]} 3. Bb5 {[%emt 0:00:00]} a6 {[%emt 0:00:03]} 4. Ba4 {[%emt 0:00:00]} Nf6 {[%emt 0:00:04]} 5. O-O {[%emt 0:00:00]} Nxe4 {[%emt 0:00:04]} 6. d4 {[%emt 0:00:02]} b5 {[%emt 0:00:02]} 7. Bb3 {[%emt 0:00:05]} d5 {[%emt 0:00:03]} 8. dxe5 {[%emt 0:00:06]} Be6 {[%emt 0:00:02]} 9. c3 {[%emt 0:00:06]} Bc5 {[%emt 0:00:03]} 10. Qd3 {[%emt 0:00:14]} O-O {[%emt 0:00:21]} 11. Be3 {[%emt 0:00:17]} Bxe3 {[%emt 0:04:33]} 12. Qxe3 {[%emt 0:00:08]} f5 {[%emt 0:03:37] C82: Open Ruy Lopez: 9 c3 without 9...Be7} (12... Na5 13. Nbd2 Nxd2 14. Nxd2 Qc8 15. f4 c5 16. Bc2 f5 17. exf6 Rxf6 18. Qd3 g6 19. f5 gxf5 20. Rae1 {½-½ (29) Wei,Y (2706)-Ding,L (2764) Shenzhen 2016}) 13. exf6 {[%emt 0:02:19]} Qxf6 {[%emt 0:01:03]} 14. Nbd2 {[%emt 0:01:39]} Nxd2 {[%emt 0:01:23]} 15. Qxd2 {[%emt 0:00:54]} Rad8 {[%emt 0:01:43]} 16. Rfe1 {[%emt 0:08:27]} Na5 {[%emt 0:03:07]} 17. Qd4 {[%emt 0:04:23]} Qxd4 $146 {[%emt 0:10:57]} ({Predecessor:} 17... Qg6 18. Ne5 Qg5 19. Nf3 {½-½ (19) Bekemann,U-Schulz,G Germany 1997}) 18. Nxd4 {[%emt 0:03:07]} Bf7 {[%emt 0:02:10]} 19. Bc2 {[%emt 0:06:20]} c5 {[%emt 0:08:41]} 20. Ne6 {[%emt 0:05:15]} Bxe6 {[%emt 0:00:04]} 21. Rxe6 {[%emt 0:00:07]} d4 {[%emt 0:00:25]} 22. cxd4 {[%emt 0:02:20]} cxd4 {[%emt 0:06:18]} 23. Bd3 {[%emt 0:05:27]} Nc4 {[%emt 0:03:19]} 24. Re2 {[%emt 0:01:51]} Nb6 {[%emt 0:09:07]} 25. a3 {[%emt 0:02:01]} Na4 {[%emt 0:02:47]} 26. Rd1 {[%emt 0:01:44]} Nc5 {[%emt 0:02:00]} 27. f3 {[%emt 0:09:18]} Rd6 {[%emt 0:00:42]} 28. Rc2 {[%emt 0:03:25]} Nxd3 {[%emt 0:00:41]} 29. Rxd3 {[%emt 0:00:41]} Kf7 {[%emt 0:00:51]} 30. Rc7+ {[%emt 0:01:32]} Kf6 {[%emt 0:00:25]} 31. Kf2 {[%emt 0:00:27]} Rf7 {[%emt 0:00:35]} 32. Rc5 {[%emt 0:00:31]} Re7 {[%emt 0:00:59]} 33. Rc2 {[%emt 0:00:30]} Ke5 {[%emt 0:01:29]} 34. Re2+ {[%emt 0:00:19]} Kf6 {[%emt 0:00:01]} 35. Rdd2 {[%emt 0:01:50]} Rxe2+ {[%emt 0:04:30]} 36. Kxe2 {[%emt 0:00:11]} Ke5 $14 {[%emt 0:01:19]} 37. Kd3 {[%emt 0:00:09]} Kd5 {[%emt 0:00:55]} 38. Re2 {[%emt 0:00:18]} Rh6 {[%emt 0:01:55]} 39. Re7 {[%emt 0:02:29]} Rxh2 {[%emt 0:02:14]} 40. Rxg7 {[%emt 0:00:00]} Ke5 {[%emt 0:00:00]} 41. Rg5+ {[%emt 0:01:03]} Kf6 {[%emt 0:02:42]} 42. Rg8 {[%emt 0:01:05]} Ke5 {[%emt 0:03:26]} 43. Re8+ {[%emt 0:00:35]} Kf4 {[%emt 0:02:00]} 44. Re4+ {[%emt 0:02:25]} Kf5 {[%emt 0:06:24]} 45. Re2 {[%emt 0:02:08]} Rh4 {[%emt 0:00:23]} 46. b4 {[%emt 0:00:20]} h5 {[%emt 0:01:26]} 47. Re4 {[%emt 0:00:42]} Rh1 {[%emt 0:01:46]} 48. g4+ {[%emt 0:00:56]} hxg4 {[%emt 0:01:12]} 49. fxg4+ {[%emt 0:00:04]} Kg5 {[%emt 0:00:04]} 50. Kxd4 {[%emt 0:01:41]} Rd1+ {[%emt 0:04:28]} 51. Kc3 {[%emt 0:01:03]} Rc1+ {[%emt 0:00:29]} 52. Kb3 {[%emt 0:00:31]} Rh1 {[%emt 0:02:30]} 53. Re6 {[%emt 0:00:51]} Rh3+ {[%emt 0:00:02]} 54. Kb2 {[%emt 0:00:05]} Rh2+ {[%emt 0:00:06]} 55. Kc1 {[%emt 0:00:06]} Rh1+ {[%emt 0:01:28]} 56. Kd2 {[%emt 0:00:15]} Kxg4 {[%emt 0:03:04]} 57. Rxa6 {[%emt 0:00:16]} Rh3 {[%emt 0:00:56]} 58. Ra5 {[%emt 0:02:23]} Kf4 {[%emt 0:00:31]} 59. Kc2 {[%emt 0:00:54]} Ke4 {[%emt 0:00:37]} 60. Rxb5 {[%emt 0:00:43]} Rxa3 {[%emt 0:00:04]} 61. Kb2 {[%emt 0:00:25]} Rh3 {[%emt 0:00:13]} 62. Ra5 {[%emt 0:01:15]} Kd4 {[%emt 0:03:21]} 63. Ra3 {[%emt 0:00:10]} Rh2+ {[%emt 0:01:05]} 64. Kb3 {[%emt 0:00:20]} Rh3+ {[%emt 0:00:13]} 65. Ka4 {[%emt 0:00:11]} Rh8 {[%emt 0:00:02]} 66. Rg3 {[%emt 0:00:35]} Ra8+ {[%emt 0:00:09]} 67. Kb3 {[%emt 0:00:08]} Kd5 {[%emt 0:00:15]} 68. Rc3 {[%emt 0:00:08]} Kd6 {[%emt 0:00:51]} 69. b5 {[%emt 0:01:17]} Kd7 {[%emt 0:00:12]} 70. Kb4 {[%emt 0:00:10]} Rc8 {[%emt 0:00:11]} 71. Rxc8 {[%emt 0:01:12]} Kxc8 {[%emt 0:00:04]} 72. Ka5 {[%emt 0:00:42]} Kb7 {[%emt 0:00:11]} 73. b6 {[%emt 0:00:06]} Kb8 {[%emt 0:00:03]} 74. Ka6 {[%emt 0:00:05]} Ka8 {[%emt 0:00:02]} 75. b7+ {[%emt 0:00:11]} Kb8 {[%emt 0:00:01]} 76. Kb6 {[%emt 0:00:07]} 1/2-1/2

[Event "WYCC 2018 O14"]
[Site "Halkidiki"]
[Date "2018.10.22"]
[Round "4"]
[White "Tanriverdi, Enes"]
[Black "Rasti, Arvin"]
[Result "1-0"]
[ECO "E18"]
[WhiteElo "2317"]
[BlackElo "2064"]
[Annotator "NA"]
[PlyCount "91"]
[EventDate "2018.10.20"]
[EventType "swiss"]
[EventCountry "GRE"]
[SourceTitle "playchess.com"]
[Source "ChessBase"]
[SourceQuality "1"]
[TimeControl "40/5400+30:1800+30"]

1. d4 {[%emt 0:00:00]} Nf6 {[%emt 0:00:00]} 2. c4 {[%emt 0:00:00]} e6 {[%emt 0:00:00]} 3. Nf3 {[%emt 0:00:00]} b6 {[%emt 0:00:00]} 4. g3 {[%emt 0:00:06]} Bb7 {[%emt 0:00:04]} 5. Bg2 {[%emt 0:00:06]} Be7 {[%emt 0:00:05]} 6. O-O {[%emt 0:00:05]} O-O {[%emt 0:00:05]} 7. Nc3 {[%emt 0:00:02]} Ne4 {[%emt 0:00:05]} 8. Bd2 {[%emt 0:00:05]} f5 {[%emt 0:00:24]} 9. Ne5 {[%emt 0:04:47] E18: Damenindisch (Hauptfortsetzung)} (9. Qc2 Nxc3 10. Qxc3 Bf6 11. Rad1 Nc6 12. Qe3 Ne7 13. Bc3 Qe8 14. Ne1 Bxg2 15. Nxg2 Ng6 16. Qd3 Rd8 17. e4 fxe4 18. Qxe4 {½-½ (41) Aronian,L (2780)-Ivanchuk,V (2757) Leuven 2017}) 9... Nxc3 {[%emt 0:10:02]} 10. Bxc3 {[%emt 0:00:05]} Bxg2 {[%emt 0:00:10]} 11. Kxg2 {[%emt 0:00:04]} Bf6 {[%emt 0:00:49]} 12. Re1 {[%emt 0:04:58]} Bxe5 $146 {[%emt 0:02:43]} ({Vorgänger:} 12... a5 13. Rc1 Na6 14. Nd3 Qe7 15. a3 Qd6 16. Nf4 Rae8 17. Qd3 c5 18. e3 cxd4 19. exd4 Bg5 20. Qf3 Rc8 21. Qb7 Nb8 22. d5 {½-½ (22) Simeonidis,I (2266)-Nikolaou,S (2096) Nikaia 2015}) 13. dxe5 {[%emt 0:00:06]} a5 {[%emt 0:00:35]} 14. e4 {[%emt 0:09:37]} Na6 {[%emt 0:06:35]} 15. exf5 {[%emt 0:00:50]} Rxf5 {[%emt 0:00:20]} 16. f4 {[%emt 0:00:12]} Qe7 {[%emt 0:02:28]} 17. a3 {[%emt 0:04:32]} Raf8 {[%emt 0:02:46]} 18. Rb1 {[%emt 0:00:50]} g5 {[%emt 0:04:05]} 19. Bd2 {[%emt 0:02:11]} gxf4 {[%emt 0:03:10]} 20. Bxf4 {[%emt 0:00:11]} Qg7 {[%emt 0:03:42]} 21. Kh1 {[%emt 0:00:56]} h5 {[%emt 0:03:49]} 22. b4 {[%emt 0:13:27]} axb4 {[%emt 0:06:32]} 23. axb4 {[%emt 0:00:07]} Qg4 {[%emt 0:01:57]} (23... Qh7 $11 {keeps the balance.}) 24. Qxg4+ {[%emt 0:02:30]} hxg4 {[%emt 0:01:06]} 25. Red1 {[%emt 0:00:06]} R8f7 {[%emt 0:00:28]} 26. Rd2 {[%emt 0:01:16]} Rh5 {[%emt 0:02:08]} 27. Ra2 {[%emt 0:00:46]} Nb8 {[%emt 0:03:13]} 28. b5 {[%emt 0:01:32]} Kg7 $16 {[%emt 0:01:31]} 29. Ra8 {[%emt 0:16:15]} Rf8 {[%emt 0:00:32]} 30. Rba1 {[%emt 0:02:59]} d6 {[%emt 0:07:40]} 31. R8a7 {[%emt 0:04:13]} dxe5 {[%emt 0:04:13]} 32. Rxc7+ {[%emt 0:00:05]} Kg6 {[%emt 0:00:32]} 33. Be3 {[%emt 0:01:07]} Rf3 {[%emt 0:03:55]} 34. Bxb6 {[%emt 0:00:28]} Rxg3 {[%emt 0:00:12]} 35. Rg1 {[%emt 0:00:58]} Rd3 {[%emt 0:01:28]} 36. Rxg4+ {[%emt 0:01:12]} Kf5 {[%emt 0:00:10]} 37. Rg2 {[%emt 0:00:13]} Nd7 {[%emt 0:00:40]} 38. Bg1 {[%emt 0:00:33]} Rd1 {[%emt 0:01:07]} 39. c5 {[%emt 0:00:44]} e4 {[%emt 0:00:17]} 40. Rxd7 {[%emt 0:00:00]} Rxd7 {[%emt 0:00:00]} 41. c6 {[%emt 0:08:16]} Rc7 {[%emt 0:01:06]} 42. Rc2 {[%emt 0:00:20]} e3 {[%emt 0:05:43]} 43. Rc5+ {[%emt 0:12:19]} e5 {[%emt 0:01:31]} 44. Bxe3 {[%emt 0:00:31]} Ra7 {[%emt 0:01:30]} 45. c7 {[%emt 0:00:56]} Ra1+ {[%emt 0:00:40]} 46. Bg1 {[%emt 0:00:35]} 1-0

[Event "WYCC 2018 O14"]
[Site "Halkidiki"]
[Date "2018.10.22"]
[Round "4"]
[White "Nogerbek, Kazybek"]
[Black "Boyer, Mahel"]
[Result "1-0"]
[ECO "B00"]
[WhiteElo "2316"]
[BlackElo "2227"]
[Annotator "NA"]
[PlyCount "85"]
[EventDate "2018.10.20"]
[EventType "swiss"]
[EventCountry "GRE"]
[SourceTitle "playchess.com"]
[Source "ChessBase"]
[SourceQuality "1"]
[TimeControl "40/5400+30:1800+30"]

1. e4 {[%emt 0:00:00]} Nc6 {[%emt 0:00:00]} 2. Nf3 {[%emt 0:00:09]} d6 {[%emt 0:00:00]} 3. d4 {[%emt 0:01:39]} Nf6 {[%emt 0:00:00]} 4. Nc3 {[%emt 0:00:38]} g6 {[%emt 0:00:00]} 5. Be2 {[%emt 0:01:04]} Bg7 {[%emt 0:00:00]} 6. O-O {[%emt 0:00:09]} O-O {[%emt 0:01:56]} 7. d5 {[%emt 0:00:05]} Nb8 {[%emt 0:00:01]} 8. Re1 {[%emt 0:00:12]} Bg4 {[%emt 0:00:13] B08: Pirc Defence: Classical System} (8... c6 9. Bf4 b5 10. a3 a6 11. Qd2 Bb7 12. Rad1 Nbd7 13. dxc6 Bxc6 14. e5 dxe5 15. Nxe5 Nxe5 16. Bxe5 Qxd2 17. Rxd2 {½-½ (48) Anand,V (2782)-Carlsen,M (2837) Riadh 2017}) 9. h3 {[%emt 0:02:33]} Bxf3 {[%emt 0:00:03]} 10. Bxf3 {[%emt 0:00:06]} c6 {[%emt 0:06:35]} 11. g3 {[%emt 0:05:39]} Nfd7 $146 {[%emt 0:17:23]} ({Predecessor:} 11... Nbd7 12. Bg2 Qa5 13. Bd2 Qc7 14. Be3 Rfe8 15. Ne2 a5 16. c4 {½-½ (52) Julin,A (2220)-Sivuk,V (2346) Kiev 2009}) 12. Bg2 {[%emt 0:06:00]} a6 {[%emt 0:03:52]} 13. Bg5 {[%emt 0:04:38]} b5 {[%emt 0:05:08]} 14. Qd2 {[%emt 0:12:02]} Nb6 {[%emt 0:07:17]} 15. Bh6 {[%emt 0:07:56]} Nc4 {[%emt 0:15:34]} 16. Qc1 {[%emt 0:00:21]} Nd7 {[%emt 0:01:23]} 17. Bxg7 {[%emt 0:00:35]} Kxg7 {[%emt 0:00:41]} 18. dxc6 {[%emt 0:03:08]} Nde5 {[%emt 0:01:48]} 19. a4 {[%emt 0:03:46]} bxa4 {[%emt 0:05:18]} 20. Rxa4 {[%emt 0:05:05]} Nb6 {[%emt 0:00:19]} 21. Ra3 {[%emt 0:04:31]} e6 {[%emt 0:07:15]} 22. Qa1 $14 {[%emt 0:05:29]} Qc8 {[%emt 0:01:33]} 23. b3 {[%emt 0:04:51]} Kg8 {[%emt 0:07:22]} 24. Nd5 {[%emt 0:07:35]} exd5 {[%emt 0:00:33]} 25. exd5 {[%emt 0:00:14]} g5 {[%emt 0:03:31]} 26. Qd4 {[%emt 0:04:32]} Rb8 {[%emt 0:02:02]} 27. h4 {[%emt 0:06:11]} f6 {[%emt 0:05:19]} 28. Rea1 {[%emt 0:01:53]} Qf5 {[%emt 0:01:14]} 29. Rxa6 {[%emt 0:01:13]} Nc8 {[%emt 0:00:01]} 30. Qe4 {[%emt 0:01:21]} Qxe4 {[%emt 0:00:59]} 31. Bxe4 {[%emt 0:00:01]} f5 {[%emt 0:01:26]} 32. Bg2 {[%emt 0:00:10]} gxh4 {[%emt 0:00:51]} 33. gxh4 {[%emt 0:00:05]} f4 {[%emt 0:02:45]} 34. Bh3 {[%emt 0:00:28]} Nf3+ {[%emt 0:01:09]} 35. Kh1 {[%emt 0:01:41]} Nxh4 {[%emt 0:00:01]} 36. Ra8 {[%emt 0:01:07]} Ne7 {[%emt 0:01:47]} 37. Rxb8 Rxb8 {[%emt 0:00:00]} 38. c7 {[%emt 0:02:14]} Rf8 {[%emt 0:00:00]} 39. b4 {[%emt 0:00:00]} Nhf5 {[%emt 0:00:00]} 40. b5 {[%emt 0:00:00]} Nxd5 {[%emt 0:00:00]} 41. Bxf5 {[%emt 0:08:40]} Nxc7 {[%emt 0:08:19]} 42. b6 {[%emt 0:00:07]} Nb5 {[%emt 0:05:13]} 43. b7 {[%emt 0:00:38]} 1-0